[Event "Titled Tuesday Blitz January 03 Early 2023"]
[White "Fajdetic, Hrvoje"]
[Black "Rosenberg, Evan S"]
[WhiteFideId "14501945"]
[BlackFideId "2019299"]
[WhiteElo "2151"]
[BlackElo "1956"]
[Result "0-1"]
[Round "06"]
[TimeControl "180+2"]
[Date "2023.01.03"]
[WhiteClock "0:00:02"]
[BlackClock "0:00:05"]

1. f4 {[%clk 0:02:33]}  g6 {[%clk 0:02:58]} 2. Nf3 {[%clk 0:02:33]}  d5 {[%clk 0:02:57]} 3. e3 {[%clk 0:02:33]}  c5 {[%clk 0:02:49]} 4. Bb5+ {[%clk 0:02:31]}  Nd7 {[%clk 0:02:41]} 5. O-O {[%clk 0:02:29]}  a6 {[%clk 0:02:41]} 6. Bxd7+ {[%clk 0:02:29]}  Bxd7 {[%clk 0:02:41]} 7. a4 {[%clk 0:02:28]}  b6 {[%clk 0:02:33]} 8. d3 {[%clk 0:02:24]}  Nh6 {[%clk 0:02:21]} 9. e4 {[%clk 0:02:23]}  d4 {[%clk 0:02:17]} 10. Nbd2 {[%clk 0:02:15]}  Bg7 {[%clk 0:02:01]} 11. Nc4 {[%clk 0:02:11]}  b5 {[%clk 0:02:00]} 12. axb5 {[%clk 0:02:09]}  axb5 {[%clk 0:02:00]} 13. Rxa8 {[%clk 0:02:09]}  Qxa8 {[%clk 0:02:00]} 14. Nce5 {[%clk 0:02:10]}  Bg4 {[%clk 0:01:31]} 15. h3 {[%clk 0:01:59]}  Bxf3 {[%clk 0:01:30]} 16. Nxf3 {[%clk 0:01:59]}  O-O {[%clk 0:01:26]} 17. g4 {[%clk 0:01:53]}  f6 {[%clk 0:01:25]} 18. f5 {[%clk 0:01:34]}  Nf7 {[%clk 0:01:24]} 19. Bf4 {[%clk 0:01:32]}  Qa2 {[%clk 0:01:14]} 20. Qc1 {[%clk 0:01:28]}  e5 {[%clk 0:01:10]} 21. fxe6 {[%clk 0:01:26]}  Qxe6 {[%clk 0:01:10]} 22. b4 {[%clk 0:01:20]}  c4 {[%clk 0:00:43]} 23. Nxd4 {[%clk 0:01:18]}  Qe8 {[%clk 0:00:43]} 24. Nf3 {[%clk 0:01:09]}  f5 {[%clk 0:00:29]} 25. exf5 {[%clk 0:01:03]}  gxf5 {[%clk 0:00:29]} 26. g5 {[%clk 0:01:03]}  cxd3 {[%clk 0:00:17]} 27. cxd3 {[%clk 0:01:03]}  Qe2 {[%clk 0:00:17]} 28. Qd1 {[%clk 0:00:58]}  Qb2 {[%clk 0:00:16]} 29. Qb1 {[%clk 0:00:55]}  Qe2 {[%clk 0:00:13]} 30. Rf2 {[%clk 0:00:53]}  Qe6 {[%clk 0:00:11]} 31. d4 {[%clk 0:00:46]}  Qe4 {[%clk 0:00:09]} 32. Qxe4 {[%clk 0:00:41]}  fxe4 {[%clk 0:00:10]} 33. Ne5 {[%clk 0:00:41]}  Nxe5 {[%clk 0:00:08]} 34. Bxe5 {[%clk 0:00:40]}  Bxe5 {[%clk 0:00:06]} 35. Rxf8+ {[%clk 0:00:39]}  Kxf8 {[%clk 0:00:06]} 36. dxe5 {[%clk 0:00:40]}  Ke7 {[%clk 0:00:06]} 37. Kf2 {[%clk 0:00:40]}  Ke6 {[%clk 0:00:07]} 38. Ke3 {[%clk 0:00:39]}  Kxe5 {[%clk 0:00:08]} 39. h4 {[%clk 0:00:40]}  Kf5 {[%clk 0:00:07]} 40. h5 {[%clk 0:00:03]}  Kxg5 {[%clk 0:00:06]} 41. Kxe4 {[%clk 0:00:04]}  Kxh5 {[%clk 0:00:05]} 42. Kf5 {[%clk 0:00:02]}  h6 {[%clk 0:00:05]} 43. Kf4 {[%clk 0:00:02]}  Kh4 {[%clk 0:00:05]} 44. Kf3 {[%clk 0:00:01]}  h5 {[%clk 0:00:05]} 45. Kf4 {[%clk 0:00:01]}  Kh3 {[%clk 0:00:06]} 46. Kf3 {[%clk 0:00:02]}  h4 {[%clk 0:00:05]} 0-1


[Site "https://www.chess.com"]

[Event "Titled Tuesday Blitz January 03 Early 2023"]
[White "Matveeva, Olga"]
[Black "Suduvasachmatai"]
[WhiteFideId "24107018"]
[WhiteElo "2128"]
[BlackElo "2107"]
[Result "1-0"]
[Round "06"]
[TimeControl "180+2"]
[Date "2023.01.03"]
[WhiteClock "0:00:44"]
[BlackClock "0:00:08"]

1. d4 {[%clk 0:03:00]}  d5 {[%clk 0:02:59]} 2. c4 {[%clk 0:03:01]}  e6 {[%clk 0:02:59]} 3. Nf3 {[%clk 0:03:01]}  Nf6 {[%clk 0:02:59]} 4. g3 {[%clk 0:03:02]}  c5 {[%clk 0:02:57]} 5. cxd5 {[%clk 0:03:01]}  exd5 {[%clk 0:02:57]} 6. Bg2 {[%clk 0:03:02]}  Nc6 {[%clk 0:02:57]} 7. O-O {[%clk 0:03:03]}  Bf5 {[%clk 0:02:56]} 8. Nc3 {[%clk 0:03:02]}  Be4 {[%clk 0:02:53]} 9. Bg5 {[%clk 0:02:41]}  Be7 {[%clk 0:02:48]} 10. dxc5 {[%clk 0:02:39]}  O-O {[%clk 0:02:45]} 11. Rc1 {[%clk 0:02:23]}  Bxc5 {[%clk 0:02:15]} 12. Nxe4 {[%clk 0:02:15]}  dxe4 {[%clk 0:02:13]} 13. Rxc5 {[%clk 0:02:14]}  exf3 {[%clk 0:02:13]} 14. Bxf3 {[%clk 0:02:13]}  Qb6 {[%clk 0:02:11]} 15. Rf5 {[%clk 0:01:51]}  Nd4 {[%clk 0:02:10]} 16. Rf4 {[%clk 0:01:20]}  Rad8 {[%clk 0:02:08]} 17. Qb1 {[%clk 0:01:11]}  Ne6 {[%clk 0:01:46]} 18. Rxf6 {[%clk 0:01:02]}  gxf6 {[%clk 0:01:37]} 19. Bxf6 {[%clk 0:01:03]}  Rd2 {[%clk 0:01:22]} 20. Qf5 {[%clk 0:01:01]}  Rd4 {[%clk 0:01:02]} 21. Be4 {[%clk 0:00:56]}  Rxe4 {[%clk 0:00:52]} 22. Qxe4 {[%clk 0:00:57]}  Ng7 {[%clk 0:00:52]} 23. Qf4 {[%clk 0:00:51]}  Kh8 {[%clk 0:00:29]} 24. Qg5 {[%clk 0:00:50]}  Rg8 {[%clk 0:00:27]} 25. h4 {[%clk 0:00:49]}  Qd6 {[%clk 0:00:10]} 26. h5 {[%clk 0:00:45]}  h6 {[%clk 0:00:08]} 27. Qxh6# {[%clk 0:00:44]} 1-0


[Site "https://www.chess.com"]

[Event "Titled Tuesday Blitz January 03 Early 2023"]
[White "Schut, Han"]
[Black "Guevara Sanchez, Erick Marvin"]
[WhiteFideId "1005561"]
[BlackFideId "6700136"]
[WhiteElo "2101"]
[BlackElo "2073"]
[Result "1-0"]
[Round "06"]
[TimeControl "180+2"]
[Date "2023.01.03"]
[WhiteClock "0:00:14"]
[BlackClock "0:00:15"]

1. e4 {[%clk 0:03:00]}  c5 {[%clk 0:02:59]} 2. Nf3 {[%clk 0:03:01]}  Nc6 {[%clk 0:02:59]} 3. d4 {[%clk 0:03:01]}  cxd4 {[%clk 0:03:00]} 4. Nxd4 {[%clk 0:03:02]}  Nf6 {[%clk 0:02:59]} 5. Nc3 {[%clk 0:03:02]}  d6 {[%clk 0:02:59]} 6. Bg5 {[%clk 0:03:01]}  g6 {[%clk 0:02:48]} 7. Qd2 {[%clk 0:02:49]}  Bg7 {[%clk 0:02:48]} 8. Nb3 {[%clk 0:02:25]}  O-O {[%clk 0:02:39]} 9. h4 {[%clk 0:02:08]}  h5 {[%clk 0:02:37]} 10. f3 {[%clk 0:02:02]}  a6 {[%clk 0:02:24]} 11. g4 {[%clk 0:01:51]}  b5 {[%clk 0:01:57]} 12. Bxf6 {[%clk 0:01:46]}  Bxf6 {[%clk 0:01:53]} 13. gxh5 {[%clk 0:01:47]}  e6 {[%clk 0:01:46]} 14. O-O-O {[%clk 0:01:06]}  Bxh4 {[%clk 0:01:42]} 15. hxg6 {[%clk 0:00:59]}  fxg6 {[%clk 0:01:38]} 16. Qxd6 {[%clk 0:00:47]}  Qg5+ {[%clk 0:01:28]} 17. Kb1 {[%clk 0:00:44]}  Ne5 {[%clk 0:01:22]} 18. Rxh4 {[%clk 0:00:33]}  Qxh4 {[%clk 0:01:08]} 19. Qxe5 {[%clk 0:00:33]}  Qe7 {[%clk 0:01:03]} 20. Be2 {[%clk 0:00:26]}  Bb7 {[%clk 0:01:02]} 21. Rh1 {[%clk 0:00:24]}  Rf6 {[%clk 0:01:00]} 22. Nd5 {[%clk 0:00:20]}  Bxd5 {[%clk 0:00:56]} 23. exd5 {[%clk 0:00:19]}  Re8 {[%clk 0:00:35]} 24. d6 {[%clk 0:00:18]}  Qf7 {[%clk 0:00:32]} 25. Nd4 {[%clk 0:00:17]}  Rd8 {[%clk 0:00:29]} 26. Nc6 {[%clk 0:00:17]}  Rd7 {[%clk 0:00:28]} 27. Ne7+ {[%clk 0:00:17]}  Kg7 {[%clk 0:00:22]} 28. Qh2 {[%clk 0:00:14]}  Rxe7 {[%clk 0:00:15]} 29. Qh8# {[%clk 0:00:14]} 1-0


[Site "https://www.chess.com"]

[Event "Titled Tuesday Blitz January 03 Early 2023"]
[White "Cardozo Munar, Carlos Eduardo"]
[Black "Gonzalez, Francisco Silva"]
[WhiteFideId "4409477"]
[BlackFideId "1512285"]
[WhiteElo "2043"]
[BlackElo "2021"]
[Result "1-0"]
[Round "06"]
[TimeControl "180+2"]
[Date "2023.01.03"]
[WhiteClock "0:01:24"]
[BlackClock "0:01:28"]

1. d4 {[%clk 0:03:00]}  Nf6 {[%clk 0:02:55]} 2. Bg5 {[%clk 0:03:00]}  c5 {[%clk 0:02:55]} 3. e3 {[%clk 0:03:00]}  Qb6 {[%clk 0:02:52]} 4. Nd2 {[%clk 0:02:58]}  cxd4 {[%clk 0:02:51]} 5. exd4 {[%clk 0:02:58]}  Qxd4 {[%clk 0:02:51]} 6. Bxf6 {[%clk 0:02:56]}  Qxf6 {[%clk 0:02:48]} 7. c3 {[%clk 0:02:56]}  Nc6 {[%clk 0:02:48]} 8. Ngf3 {[%clk 0:02:56]}  d6 {[%clk 0:02:46]} 9. Bb5 {[%clk 0:02:53]}  Bd7 {[%clk 0:02:45]} 10. O-O {[%clk 0:02:53]}  g6 {[%clk 0:02:43]} 11. Re1 {[%clk 0:02:54]}  O-O-O {[%clk 0:02:38]} 12. Qa4 {[%clk 0:02:52]}  a6 {[%clk 0:02:28]} 13. Bxa6 {[%clk 0:02:37]}  bxa6 {[%clk 0:02:27]} 14. Qxa6+ {[%clk 0:02:38]}  Kc7 {[%clk 0:02:28]} 15. Nc4 {[%clk 0:02:33]}  Rb8 {[%clk 0:02:26]} 16. b4 {[%clk 0:02:30]}  Qxc3 {[%clk 0:02:24]} 17. a3 {[%clk 0:02:08]}  d5 {[%clk 0:02:16]} 18. Rac1 {[%clk 0:02:03]}  Qxc4 {[%clk 0:02:12]} 19. Rxc4 {[%clk 0:02:03]}  dxc4 {[%clk 0:02:13]} 20. Qxc4 {[%clk 0:02:02]}  Kd8 {[%clk 0:02:07]} 21. Rd1 {[%clk 0:02:02]}  Rc8 {[%clk 0:02:03]} 22. Nd4 {[%clk 0:01:45]}  Ne5 {[%clk 0:01:59]} 23. Qd5 {[%clk 0:01:45]}  Bg7 {[%clk 0:01:57]} 24. f4 {[%clk 0:01:41]}  e6 {[%clk 0:01:55]} 25. Qd6 {[%clk 0:01:32]}  Ke8 {[%clk 0:01:37]} 26. fxe5 {[%clk 0:01:31]}  Bf8 {[%clk 0:01:34]} 27. Qa6 {[%clk 0:01:26]}  Be7 {[%clk 0:01:32]} 28. Nb5 {[%clk 0:01:26]}  f6 {[%clk 0:01:29]} 29. Nd6+ {[%clk 0:01:23]}  Bxd6 {[%clk 0:01:28]} 30. Qxd6 {[%clk 0:01:24]} 1-0


[Site "https://www.chess.com"]

[Event "Titled Tuesday Blitz January 03 Early 2023"]
[White "Ocelak, Jakub"]
[Black "Larina, Maria"]
[WhiteFideId "23707933"]
[BlackFideId "24113182"]
[WhiteElo "2198"]
[BlackElo "1948"]
[Result "0-1"]
[Round "06"]
[TimeControl "180+2"]
[Date "2023.01.03"]
[WhiteClock "0:00:14"]
[BlackClock "0:00:33"]

1. b3 {[%clk 0:02:59]}  e5 {[%clk 0:02:59]} 2. Bb2 {[%clk 0:02:58]}  d6 {[%clk 0:02:59]} 3. e3 {[%clk 0:02:59]}  f5 {[%clk 0:02:59]} 4. c4 {[%clk 0:02:59]}  Nf6 {[%clk 0:02:59]} 5. d4 {[%clk 0:02:59]}  e4 {[%clk 0:02:59]} 6. d5 {[%clk 0:02:56]}  g6 {[%clk 0:02:58]} 7. h4 {[%clk 0:02:56]}  h6 {[%clk 0:02:43]} 8. Ne2 {[%clk 0:02:49]}  Qe7 {[%clk 0:02:25]} 9. Nbc3 {[%clk 0:02:37]}  Bg7 {[%clk 0:02:22]} 10. Nf4 {[%clk 0:02:35]}  Qf7 {[%clk 0:02:19]} 11. Nb5 {[%clk 0:02:35]}  Na6 {[%clk 0:02:17]} 12. Be2 {[%clk 0:02:13]}  O-O {[%clk 0:01:58]} 13. Qd2 {[%clk 0:02:01]}  Nc5 {[%clk 0:01:39]} 14. O-O-O {[%clk 0:01:51]}  a6 {[%clk 0:01:38]} 15. Nd4 {[%clk 0:01:50]}  a5 {[%clk 0:01:34]} 16. Kb1 {[%clk 0:01:18]}  a4 {[%clk 0:01:30]} 17. b4 {[%clk 0:01:18]}  a3 {[%clk 0:01:30]} 18. Ba1 {[%clk 0:01:18]}  Na6 {[%clk 0:01:21]} 19. Nde6 {[%clk 0:01:17]}  Bxe6 {[%clk 0:01:14]} 20. Nxe6 {[%clk 0:01:17]}  Bh8 {[%clk 0:01:12]} 21. Nxf8 {[%clk 0:01:00]}  Qxf8 {[%clk 0:01:13]} 22. f3 {[%clk 0:00:45]}  exf3 {[%clk 0:01:12]} 23. gxf3 {[%clk 0:00:46]}  Nh5 {[%clk 0:00:52]} 24. Rdg1 {[%clk 0:00:30]}  Kh7 {[%clk 0:00:46]} 25. f4 {[%clk 0:00:22]}  Bxa1 {[%clk 0:00:44]} 26. Kxa1 {[%clk 0:00:23]}  Qh8+ {[%clk 0:00:44]} 27. Kb1 {[%clk 0:00:22]}  c5 {[%clk 0:00:36]} 28. Bxh5 {[%clk 0:00:15]}  gxh5 {[%clk 0:00:34]} 29. Qd3 {[%clk 0:00:14]}  Qb2# {[%clk 0:00:33]} 0-1


[Site "https://www.chess.com"]

[Event "Titled Tuesday Blitz January 03 Early 2023"]
[White "Gressmann, Moritz"]
[Black "Tuleyeva-Aketayeva, Dana"]
[WhiteFideId "24695084"]
[BlackFideId "13701932"]
[WhiteElo "2129"]
[BlackElo "2130"]
[Result "1-0"]
[Round "06"]
[TimeControl "180+2"]
[Date "2023.01.03"]
[WhiteClock "0:00:49"]
[BlackClock "0:00:01"]

1. c4 {[%clk 0:03:00]}  c5 {[%clk 0:02:57]} 2. g3 {[%clk 0:03:01]}  g6 {[%clk 0:02:57]} 3. Bg2 {[%clk 0:03:01]}  Bg7 {[%clk 0:02:58]} 4. Nc3 {[%clk 0:03:01]}  Nc6 {[%clk 0:02:58]} 5. Nf3 {[%clk 0:03:02]}  Nf6 {[%clk 0:02:58]} 6. O-O {[%clk 0:03:02]}  O-O {[%clk 0:02:59]} 7. d3 {[%clk 0:03:02]}  Rb8 {[%clk 0:02:58]} 8. a3 {[%clk 0:03:02]}  b6 {[%clk 0:02:56]} 9. Rb1 {[%clk 0:03:00]}  Bb7 {[%clk 0:02:56]} 10. Bd2 {[%clk 0:02:59]}  d5 {[%clk 0:02:44]} 11. cxd5 {[%clk 0:02:49]}  Nxd5 {[%clk 0:02:43]} 12. Nxd5 {[%clk 0:02:31]}  Qxd5 {[%clk 0:02:41]} 13. Bc3 {[%clk 0:02:31]}  Qd7 {[%clk 0:02:32]} 14. Bxg7 {[%clk 0:02:30]}  Kxg7 {[%clk 0:02:33]} 15. Qd2 {[%clk 0:02:06]}  Nd4 {[%clk 0:02:27]} 16. Nxd4 {[%clk 0:01:52]}  Qxd4 {[%clk 0:02:12]} 17. b4 {[%clk 0:01:47]}  Bxg2 {[%clk 0:02:10]} 18. Kxg2 {[%clk 0:01:46]}  c4 {[%clk 0:02:06]} 19. Rfc1 {[%clk 0:01:37]}  cxd3 {[%clk 0:02:03]} 20. Qxd3 {[%clk 0:01:34]}  Qxd3 {[%clk 0:02:03]} 21. exd3 {[%clk 0:01:35]}  Rb7 {[%clk 0:02:03]} 22. Rc3 {[%clk 0:01:33]}  Rd8 {[%clk 0:02:00]} 23. Rbc1 {[%clk 0:01:31]}  e6 {[%clk 0:01:51]} 24. Rc7 {[%clk 0:01:29]}  Rd7 {[%clk 0:01:51]} 25. Rxb7 {[%clk 0:01:28]}  Rxb7 {[%clk 0:01:52]} 26. Kf3 {[%clk 0:01:28]}  Kf6 {[%clk 0:01:46]} 27. Ke3 {[%clk 0:01:27]}  Ke5 {[%clk 0:01:46]} 28. Rc8 {[%clk 0:01:25]}  h5 {[%clk 0:01:42]} 29. h4 {[%clk 0:01:25]}  Kd6 {[%clk 0:01:40]} 30. Rd8+ {[%clk 0:01:23]}  Kc6 {[%clk 0:01:39]} 31. a4 {[%clk 0:01:22]}  Kc7 {[%clk 0:01:00]} 32. Rd4 {[%clk 0:01:17]}  Kc6 {[%clk 0:00:46]} 33. b5+ {[%clk 0:01:14]}  Kc5 {[%clk 0:00:37]} 34. Ke4 {[%clk 0:01:14]}  f6 {[%clk 0:00:21]} 35. Rc4+ {[%clk 0:01:11]}  Kd6 {[%clk 0:00:20]} 36. Rc6+ {[%clk 0:01:11]}  Ke7 {[%clk 0:00:21]} 37. d4 {[%clk 0:01:11]}  Rd7 {[%clk 0:00:20]} 38. Rc8 {[%clk 0:01:06]}  Kd6 {[%clk 0:00:19]} 39. Rg8 {[%clk 0:01:03]}  f5+ {[%clk 0:00:19]} 40. Ke3 {[%clk 0:01:00]}  Rc7 {[%clk 0:00:18]} 41. Rxg6 {[%clk 0:00:57]}  Rc4 {[%clk 0:00:18]} 42. Rg5 {[%clk 0:00:54]}  Rxa4 {[%clk 0:00:17]} 43. Rxh5 {[%clk 0:00:54]}  Ra5 {[%clk 0:00:16]} 44. Rh8 {[%clk 0:00:51]}  Rxb5 {[%clk 0:00:16]} 45. h5 {[%clk 0:00:51]}  Rb1 {[%clk 0:00:14]} 46. h6 {[%clk 0:00:49]}  Rh1 {[%clk 0:00:14]} 47. h7 {[%clk 0:00:49]}  Kc7 {[%clk 0:00:04]} 48. Ra8 {[%clk 0:00:49]}  Kb7 {[%clk 0:00:01]} 49. h8=Q {[%clk 0:00:49]} 1-0


[Site "https://www.chess.com"]

[Event "Titled Tuesday Blitz January 03 Early 2023"]
[White "Ivanova, Karina"]
[Black "Butolo, Alexandru-Mircea"]
[WhiteFideId "24139750"]
[BlackFideId "1261649"]
[WhiteElo "2085"]
[BlackElo "2033"]
[Result "1-0"]
[Round "06"]
[TimeControl "180+2"]
[Date "2023.01.03"]
[WhiteClock "0:01:07"]
[BlackClock "0:00:04"]

1. Nf3 {[%clk 0:02:59]}  Nf6 {[%clk 0:02:57]} 2. g3 {[%clk 0:02:58]}  b5 {[%clk 0:02:57]} 3. Bg2 {[%clk 0:02:56]}  Bb7 {[%clk 0:02:57]} 4. d4 {[%clk 0:02:55]}  e6 {[%clk 0:02:51]} 5. a4 {[%clk 0:02:54]}  b4 {[%clk 0:02:50]} 6. c4 {[%clk 0:02:53]}  d5 {[%clk 0:02:43]} 7. b3 {[%clk 0:02:47]}  Nbd7 {[%clk 0:02:39]} 8. O-O {[%clk 0:02:44]}  Be7 {[%clk 0:02:38]} 9. Nbd2 {[%clk 0:02:43]}  O-O {[%clk 0:02:36]} 10. Bb2 {[%clk 0:02:42]}  c5 {[%clk 0:02:33]} 11. dxc5 {[%clk 0:02:39]}  Nxc5 {[%clk 0:02:33]} 12. Ne5 {[%clk 0:02:38]}  Qc7 {[%clk 0:02:23]} 13. Rc1 {[%clk 0:02:37]}  Nfd7 {[%clk 0:02:14]} 14. cxd5 {[%clk 0:02:29]}  Nxe5 {[%clk 0:02:07]} 15. d6 {[%clk 0:02:22]}  Qxd6 {[%clk 0:01:41]} 16. Bxe5 {[%clk 0:02:21]}  Qxe5 {[%clk 0:01:37]} 17. Rxc5 {[%clk 0:02:19]}  Bxc5 {[%clk 0:01:33]} 18. Bxb7 {[%clk 0:02:18]}  Rad8 {[%clk 0:01:32]} 19. Qc2 {[%clk 0:02:01]}  Qc3 {[%clk 0:01:31]} 20. Qxc3 {[%clk 0:02:00]}  bxc3 {[%clk 0:01:31]} 21. Ne4 {[%clk 0:01:59]}  Bb4 {[%clk 0:01:31]} 22. Rc1 {[%clk 0:01:57]}  Rd7 {[%clk 0:01:27]} 23. Bc6 {[%clk 0:01:53]}  Rc7 {[%clk 0:01:25]} 24. Bb5 {[%clk 0:01:53]}  f5 {[%clk 0:01:20]} 25. Ng5 {[%clk 0:01:50]}  Rf6 {[%clk 0:00:58]} 26. Bc4 {[%clk 0:01:49]}  h6 {[%clk 0:00:44]} 27. Nf3 {[%clk 0:01:44]}  Kf8 {[%clk 0:00:32]} 28. Ne5 {[%clk 0:01:42]}  Ke7 {[%clk 0:00:22]} 29. f4 {[%clk 0:01:39]}  Bc5+ {[%clk 0:00:20]} 30. Kg2 {[%clk 0:01:38]}  Bd4 {[%clk 0:00:20]} 31. e3 {[%clk 0:01:28]}  Bxe3 {[%clk 0:00:19]} 32. Rxc3 {[%clk 0:01:28]}  Bd4 {[%clk 0:00:19]} 33. Rd3 {[%clk 0:01:28]}  Bxe5 {[%clk 0:00:19]} 34. fxe5 {[%clk 0:01:28]}  Rf8 {[%clk 0:00:20]} 35. Rd6 {[%clk 0:01:28]}  Rd8 {[%clk 0:00:09]} 36. Rxe6+ {[%clk 0:01:27]}  Kf8 {[%clk 0:00:09]} 37. Ra6 {[%clk 0:01:22]}  Rd2+ {[%clk 0:00:09]} 38. Kh3 {[%clk 0:01:21]}  g5 {[%clk 0:00:08]} 39. g4 {[%clk 0:01:17]}  fxg4+ {[%clk 0:00:08]} 40. Kxg4 {[%clk 0:01:17]}  Rxh2 {[%clk 0:00:08]} 41. Kf5 {[%clk 0:01:15]}  Rf2+ {[%clk 0:00:08]} 42. Kg6 {[%clk 0:01:14]}  Rg7+ {[%clk 0:00:08]} 43. Kh5 {[%clk 0:01:12]}  Rh2+ {[%clk 0:00:09]} 44. Kg4 {[%clk 0:01:12]}  Rg2+ {[%clk 0:00:09]} 45. Kf3 {[%clk 0:01:12]}  Rd2 {[%clk 0:00:06]} 46. Ke3 {[%clk 0:01:11]}  Rdd7 {[%clk 0:00:05]} 47. Rxh6 {[%clk 0:01:11]}  Rde7 {[%clk 0:00:04]} 48. Rh8+ {[%clk 0:01:07]} 1-0


[Site "https://www.chess.com"]

[Event "Titled Tuesday Blitz January 03 Early 2023"]
[White "Martinez, Shawn"]
[Black "Johnson, Ben"]
[WhiteFideId "2039770"]
[BlackFideId "2010917"]
[WhiteElo "1881"]
[BlackElo "1961"]
[Result "1-0"]
[Round "06"]
[TimeControl "180+2"]
[Date "2023.01.03"]
[WhiteClock "0:00:42"]
[BlackClock "0:00:26"]

1. e4 {[%clk 0:03:00]}  c5 {[%clk 0:02:59]} 2. Nc3 {[%clk 0:03:00]}  Nc6 {[%clk 0:02:59]} 3. Bb5 {[%clk 0:03:00]}  Nd4 {[%clk 0:02:59]} 4. Nf3 {[%clk 0:03:00]}  g6 {[%clk 0:02:57]} 5. O-O {[%clk 0:02:59]}  Bg7 {[%clk 0:02:57]} 6. Nxd4 {[%clk 0:02:59]}  cxd4 {[%clk 0:02:57]} 7. Ne2 {[%clk 0:03:00]}  a6 {[%clk 0:02:53]} 8. Bd3 {[%clk 0:03:00]}  d6 {[%clk 0:02:49]} 9. c3 {[%clk 0:02:59]}  dxc3 {[%clk 0:02:49]} 10. dxc3 {[%clk 0:03:00]}  Nf6 {[%clk 0:02:47]} 11. Bf4 {[%clk 0:02:52]}  O-O {[%clk 0:02:46]} 12. Qd2 {[%clk 0:02:50]}  b5 {[%clk 0:02:38]} 13. a4 {[%clk 0:02:36]}  bxa4 {[%clk 0:02:33]} 14. Rxa4 {[%clk 0:02:34]}  Bb7 {[%clk 0:02:32]} 15. Ng3 {[%clk 0:02:32]}  Nd7 {[%clk 0:02:18]} 16. Rfa1 {[%clk 0:02:03]}  Nc5 {[%clk 0:02:17]} 17. R4a3 {[%clk 0:02:02]}  a5 {[%clk 0:02:08]} 18. Bc2 {[%clk 0:01:57]}  Qb6 {[%clk 0:02:00]} 19. R1a2 {[%clk 0:01:48]}  Bc6 {[%clk 0:01:52]} 20. h4 {[%clk 0:01:40]}  h5 {[%clk 0:01:35]} 21. Bh6 {[%clk 0:01:38]}  Rfb8 {[%clk 0:01:07]} 22. Bxg7 {[%clk 0:01:35]}  Kxg7 {[%clk 0:01:08]} 23. Qg5 {[%clk 0:01:31]}  e6 {[%clk 0:00:37]} 24. Nxh5+ {[%clk 0:01:26]}  Kh7 {[%clk 0:00:32]} 25. Nf6+ {[%clk 0:01:07]}  Kg7 {[%clk 0:00:31]} 26. h5 {[%clk 0:01:02]}  Qd8 {[%clk 0:00:29]} 27. h6+ {[%clk 0:01:00]}  Kh8 {[%clk 0:00:29]} 28. f4 {[%clk 0:00:51]}  Nd7 {[%clk 0:00:26]} 29. Nxd7 {[%clk 0:00:43]}  Qxd7 {[%clk 0:00:26]} 30. Qf6+ {[%clk 0:00:42]} 1-0


[Site "https://www.chess.com"]

[Event "Titled Tuesday Blitz January 03 Early 2023"]
[White "Winkels, Marcel"]
[Black "Guzman Moneo, Alberto"]
[WhiteFideId "1003887"]
[BlackFideId "2209616"]
[WhiteElo "1960"]
[BlackElo "2170"]
[Result "1-0"]
[Round "06"]
[TimeControl "180+2"]
[Date "2023.01.03"]
[WhiteClock "0:00:39"]
[BlackClock "0:00:29"]

1. e4 {[%clk 0:03:00]}  c5 {[%clk 0:02:59]} 2. d4 {[%clk 0:02:59]}  cxd4 {[%clk 0:02:58]} 3. c3 {[%clk 0:02:59]}  e5 {[%clk 0:02:59]} 4. Nf3 {[%clk 0:02:55]}  Nc6 {[%clk 0:02:58]} 5. Bc4 {[%clk 0:02:55]}  Be7 {[%clk 0:02:58]} 6. O-O {[%clk 0:02:53]}  Nf6 {[%clk 0:02:57]} 7. cxd4 {[%clk 0:02:52]}  exd4 {[%clk 0:02:57]} 8. e5 {[%clk 0:02:52]}  Ng4 {[%clk 0:02:51]} 9. Re1 {[%clk 0:02:50]}  O-O {[%clk 0:02:51]} 10. h3 {[%clk 0:02:49]}  Nh6 {[%clk 0:02:41]} 11. Bxh6 {[%clk 0:02:47]}  gxh6 {[%clk 0:02:42]} 12. Nxd4 {[%clk 0:02:47]}  d5 {[%clk 0:02:38]} 13. Nxc6 {[%clk 0:02:28]}  bxc6 {[%clk 0:02:37]} 14. Bd3 {[%clk 0:02:28]}  Kh8 {[%clk 0:02:35]} 15. Qh5 {[%clk 0:02:27]}  Rg8 {[%clk 0:02:10]} 16. Qxh6 {[%clk 0:02:23]}  Rg7 {[%clk 0:02:10]} 17. Nc3 {[%clk 0:02:15]}  Rb8 {[%clk 0:02:05]} 18. Rab1 {[%clk 0:02:08]}  Bg5 {[%clk 0:02:00]} 19. Qh5 {[%clk 0:02:06]}  Qg8 {[%clk 0:01:54]} 20. Bf1 {[%clk 0:02:02]}  Bd2 {[%clk 0:01:50]} 21. Red1 {[%clk 0:01:59]}  Rg5 {[%clk 0:01:48]} 22. Qh4 {[%clk 0:01:53]}  Bxc3 {[%clk 0:01:42]} 23. bxc3 {[%clk 0:01:52]}  Rxb1 {[%clk 0:01:43]} 24. Rxb1 {[%clk 0:01:50]}  Bf5 {[%clk 0:01:43]} 25. Rb8 {[%clk 0:01:44]}  Qxb8 {[%clk 0:01:37]} 26. Qxg5 {[%clk 0:01:43]}  Qxe5 {[%clk 0:01:33]} 27. g4 {[%clk 0:01:36]}  Qxc3 {[%clk 0:01:29]} 28. Qxf5 {[%clk 0:01:35]}  Kg7 {[%clk 0:01:25]} 29. Bd3 {[%clk 0:01:34]}  Kf8 {[%clk 0:01:21]} 30. Qxh7 {[%clk 0:01:33]}  Qa1+ {[%clk 0:01:19]} 31. Kg2 {[%clk 0:01:31]}  Qxa2 {[%clk 0:01:20]} 32. Qh8+ {[%clk 0:01:29]}  Ke7 {[%clk 0:01:20]} 33. Qc8 {[%clk 0:01:26]}  Qd2 {[%clk 0:01:16]} 34. Qc7+ {[%clk 0:01:25]}  Kf8 {[%clk 0:01:16]} 35. Bf5 {[%clk 0:01:21]}  Qc3 {[%clk 0:01:12]} 36. Qxa7 {[%clk 0:01:18]}  Kg7 {[%clk 0:00:57]} 37. Qb8 {[%clk 0:01:15]}  c5 {[%clk 0:00:54]} 38. Qd6 {[%clk 0:01:13]}  Qd4 {[%clk 0:00:50]} 39. Qd7 {[%clk 0:01:03]}  c4 {[%clk 0:00:46]} 40. h4 {[%clk 0:00:57]}  c3 {[%clk 0:00:46]} 41. h5 {[%clk 0:00:55]}  Qe5 {[%clk 0:00:36]} 42. Qc6 {[%clk 0:00:48]}  f6 {[%clk 0:00:30]} 43. Qd7+ {[%clk 0:00:44]}  Kh6 {[%clk 0:00:29]} 44. Qh7+ {[%clk 0:00:42]}  Kg5 {[%clk 0:00:30]} 45. Qg6+ {[%clk 0:00:42]}  Kf4 {[%clk 0:00:29]} 46. Qh6# {[%clk 0:00:39]} 1-0


[Site "https://www.chess.com"]